[Event "*** Titled Tuesday Blitz"]
[Site "Chess.com"]
[Date "2020.10.20"]
[Round "3"]
[White "Borsuk_Konstantin"]
[Black "MrChampion_Coach"]
[Result "1-0"]
[WhiteElo "2567"]
[BlackElo "2362"]
[TimeControl "180+1"]
[EndTime "10:29:14 PDT"]
[Termination "Borsuk_Konstantin won by checkmate"]

1. d4 {[%clk 0:03:00.9]} 1... Nf6 {[%clk 0:02:59.4]} 2. c4 {[%clk 0:03:01.1]}
2... e6 {[%clk 0:02:59.1]} 3. Nf3 {[%clk 0:03:01.7]} 3... d5 {[%clk 0:02:56.4]}
4. g3 {[%clk 0:02:57.9]} 4... dxc4 {[%clk 0:02:47.4]} 5. Bg2 {[%clk 0:02:58]}
5... Bd7 {[%clk 0:02:47.5]} 6. Ne5 {[%clk 0:02:56.4]} 6... Bc6 {[%clk
0:02:47.2]} 7. Nxc6 {[%clk 0:02:56]} 7... Nxc6 {[%clk 0:02:47.1]} 8. Bxc6+
{[%clk 0:02:48.8]} 8... bxc6 {[%clk 0:02:46.7]} 9. Nc3 {[%clk 0:02:49.3]} 9...
Bd6 {[%clk 0:02:09]} 10. Qa4 {[%clk 0:02:42.3]} 10... O-O {[%clk 0:02:08.3]} 11.
Qxc6 {[%clk 0:02:38.7]} 11... e5 {[%clk 0:01:39.6]} 12. dxe5 {[%clk 0:01:53.1]}
12... Bxe5 {[%clk 0:01:40.5]} 13. Qxc4 {[%clk 0:01:52.3]} 13... Qd7 {[%clk
0:01:12.2]} 14. Bg5 {[%clk 0:01:11.3]} 14... Qh3 {[%clk 0:00:52.3]} 15. Bxf6
{[%clk 0:01:09.4]} 15... Bxf6 {[%clk 0:00:53.2]} 16. O-O-O {[%clk 0:00:59.6]}
16... Qg2 {[%clk 0:00:50.4]} 17. Ne4 {[%clk 0:00:56.2]} 17... Be7 {[%clk
0:00:31.3]} 18. h3 {[%clk 0:00:39.1]} 18... Rfe8 {[%clk 0:00:12.1]} 19. f3
{[%clk 0:00:32]} 19... Rab8 {[%clk 0:00:06.7]} 20. Rdg1 {[%clk 0:00:31.3]} 20...
Bg5+ {[%clk 0:00:06.6]} 21. Kb1 {[%clk 0:00:23.3]} 21... Rxe4 {[%clk 0:00:06.2]}
22. Qxe4 {[%clk 0:00:21.5]} 22... Qf2 {[%clk 0:00:06.7]} 23. Rd1 {[%clk
0:00:17.8]} 23... Bf6 {[%clk 0:00:06.8]} 24. b3 {[%clk 0:00:13.7]} 24... Qxg3
{[%clk 0:00:07.7]} 25. Rc1 {[%clk 0:00:09.1]} 25... g6 {[%clk 0:00:07.6]} 26.
Rc6 {[%clk 0:00:07.6]} 26... Qf2 {[%clk 0:00:06.3]} 27. Rxf6 {[%clk 0:00:06.5]}
27... Qg2 {[%clk 0:00:07]} 28. Rc1 {[%clk 0:00:06.3]} 28... Kg7 {[%clk
0:00:07.9]} 29. Rfc6 {[%clk 0:00:06]} 29... Qg3 {[%clk 0:00:06.3]} 30. Rxc7
{[%clk 0:00:06]} 30... Qd6 {[%clk 0:00:06.2]} 31. R7c4 {[%clk 0:00:04.9]} 31...
Qf6 {[%clk 0:00:06.1]} 32. Qd4 {[%clk 0:00:05.4]} 32... Rb6 {[%clk 0:00:06.4]}
33. Qxf6+ {[%clk 0:00:05.3]} 33... Rxf6 {[%clk 0:00:07.3]} 34. Rc7 {[%clk
0:00:05.8]} 34... a6 {[%clk 0:00:08.2]} 35. Ra7 {[%clk 0:00:05.8]} 35... Rf5
{[%clk 0:00:09.1]} 36. Rcc7 {[%clk 0:00:05.4]} 36... Re5 {[%clk 0:00:10]} 37.
Rxf7+ {[%clk 0:00:05.3]} 37... Kh6 {[%clk 0:00:10.2]} 38. e4 {[%clk 0:00:06]}
38... Kg5 {[%clk 0:00:11.1]} 39. f4+ {[%clk 0:00:05.9]} 39... Kh6 {[%clk
0:00:11]} 40. fxe5 {[%clk 0:00:06.5]} 40... Kg5 {[%clk 0:00:11]} 41. e6 {[%clk
0:00:07.2]} 41... a5 {[%clk 0:00:11.5]} 42. e7 {[%clk 0:00:07.7]} 42... a4
{[%clk 0:00:12.4]} 43. e8=Q {[%clk 0:00:07.8]} 43... a3 {[%clk 0:00:13.3]} 44.
Qe5+ {[%clk 0:00:08.1]} 44... Kh4 {[%clk 0:00:12]} 45. Rxh7# {[%clk 0:00:08.8]}
1-0

[Event "*** Titled Tuesday Blitz"]
[Site "Chess.com"]
[Date "2020.10.20"]
[Round "3"]
[White "teacher4chess"]
[Black "harvsp123"]
[Result "0-1"]
[WhiteElo "2043"]
[BlackElo "2447"]
[TimeControl "180+1"]
[EndTime "10:29:14 PDT"]
[Termination "harvsp123 won on time"]

1. d4 {[%clk 0:03:00.1]} 1... g6 {[%clk 0:02:45.1]} 2. Nf3 {[%clk 0:02:58.7]}
2... Bg7 {[%clk 0:02:46]} 3. Nc3 {[%clk 0:02:58.1]} 3... d6 {[%clk 0:02:42.9]}
4. e4 {[%clk 0:02:57.7]} 4... a6 {[%clk 0:02:42.2]} 5. Be3 {[%clk 0:02:54.4]}
5... b5 {[%clk 0:02:40.6]} 6. Be2 {[%clk 0:02:52.4]} 6... Bb7 {[%clk 0:02:34.1]}
7. d5 {[%clk 0:02:52.1]} 7... c6 {[%clk 0:02:19.1]} 8. Bd4 {[%clk 0:02:47.8]}
8... Nf6 {[%clk 0:02:17.8]} 9. a3 {[%clk 0:02:37.6]} 9... O-O {[%clk 0:02:15.3]}
10. O-O {[%clk 0:02:34.6]} 10... c5 {[%clk 0:01:58.4]} 11. Bxf6 {[%clk
0:02:33.9]} 11... exf6 {[%clk 0:01:50.1]} 12. Re1 {[%clk 0:02:28.7]} 12... Nd7
{[%clk 0:01:49.6]} 13. Qd2 {[%clk 0:02:18.2]} 13... Re8 {[%clk 0:01:48.9]} 14.
Bf1 {[%clk 0:02:11]} 14... Ne5 {[%clk 0:01:38.8]} 15. Nxe5 {[%clk 0:02:07.2]}
15... fxe5 {[%clk 0:01:37.2]} 16. g3 {[%clk 0:01:59.9]} 16... f5 {[%clk
0:01:29.8]} 17. Bh3 {[%clk 0:01:51.4]} 17... Rf8 {[%clk 0:01:21]} 18. Rad1
{[%clk 0:01:48]} 18... Ra7 {[%clk 0:01:17.7]} 19. Qd3 {[%clk 0:01:40.4]} 19...
Bc8 {[%clk 0:01:16.8]} 20. Qe2 {[%clk 0:01:29.8]} 20... Raf7 {[%clk 0:01:14.8]}
21. exf5 {[%clk 0:01:14.6]} 21... gxf5 {[%clk 0:01:12.8]} 22. f4 {[%clk
0:01:11]} 22... e4 {[%clk 0:00:52.1]} 23. Kh1 {[%clk 0:00:47.2]} 23... Rb7
{[%clk 0:00:51.6]} 24. Qh5 {[%clk 0:00:37.4]} 24... Rf6 {[%clk 0:00:48]} 25. Qe2
{[%clk 0:00:25.8]} 25... Rh6 {[%clk 0:00:46.9]} 26. Bg2 {[%clk 0:00:20.8]} 26...
Bd7 {[%clk 0:00:43.7]} 27. Rd2 {[%clk 0:00:18.7]} 27... a5 {[%clk 0:00:40.9]}
28. Nd1 {[%clk 0:00:16.6]} 28... b4 {[%clk 0:00:38.7]} 29. axb4 {[%clk
0:00:15.8]} 29... axb4 {[%clk 0:00:39.6]} 30. b3 {[%clk 0:00:13.3]} 30... Bb5
{[%clk 0:00:37.1]} 31. Qf2 {[%clk 0:00:12.6]} 31... Ra7 {[%clk 0:00:35.5]} 32.
Ne3 {[%clk 0:00:07.6]} 32... Qd7 {[%clk 0:00:29.7]} 33. Rdd1 {[%clk 0:00:06.7]}
33... Ra2 {[%clk 0:00:28.6]} 34. h4 {[%clk 0:00:05.8]} 34... Bd4 {[%clk
0:00:25.1]} 35. Bh3 {[%clk 0:00:05.2]} 35... Rf6 {[%clk 0:00:23.6]} 36. Qg2
{[%clk 0:00:03.5]} 36... Bc3 {[%clk 0:00:22.2]} 37. Rg1 {[%clk 0:00:02.3]} 37...
Bd4 {[%clk 0:00:18.9]} 38. Rge1 {[%clk 0:00:01.5]} 38... Bd3 {[%clk 0:00:18.5]}
0-1

[Event "*** Titled Tuesday Blitz"]
[Site "Chess.com"]
[Date "2020.10.20"]
[Round "3"]
[White "vovachesss"]
[Black "Annawel"]
[Result "0-1"]
[WhiteElo "2683"]
[BlackElo "2918"]
[TimeControl "180+1"]
[EndTime "10:29:16 PDT"]
[Termination "Annawel won by resignation"]

1. c4 {[%clk 0:03:00.9]} 1... Nf6 {[%clk 0:02:52.8]} 2. Nc3 {[%clk 0:03:01.1]}
2... g6 {[%clk 0:02:52.9]} 3. e4 {[%clk 0:02:58.6]} 3... d6 {[%clk 0:02:53.4]}
4. d4 {[%clk 0:02:58.6]} 4... Bg7 {[%clk 0:02:54]} 5. h3 {[%clk 0:02:58.2]} 5...
O-O {[%clk 0:02:53.5]} 6. g4 {[%clk 0:02:52.7]} 6... c6 {[%clk 0:02:43.4]} 7. g5
{[%clk 0:02:40.7]} 7... Nh5 {[%clk 0:02:34.2]} 8. Be2 {[%clk 0:02:39.7]} 8... e5
{[%clk 0:02:34.2]} 9. Bxh5 {[%clk 0:02:39.4]} 9... gxh5 {[%clk 0:02:34.3]} 10.
dxe5 {[%clk 0:02:31.9]} 10... dxe5 {[%clk 0:02:24.7]} 11. Qxh5 {[%clk
0:02:31.8]} 11... Be6 {[%clk 0:02:17]} 12. b3 {[%clk 0:02:15]} 12... Na6 {[%clk
0:02:14.1]} 13. Be3 {[%clk 0:01:59.2]} 13... Nb4 {[%clk 0:02:09.9]} 14. Rd1
{[%clk 0:01:23]} 14... Nc2+ {[%clk 0:02:05.2]} 15. Kf1 {[%clk 0:01:08.8]} 15...
Nxe3+ {[%clk 0:01:59.3]} 16. fxe3 {[%clk 0:01:09.7]} 16... Qb6 {[%clk
0:01:59.9]} 17. Ke2 {[%clk 0:00:23.8]} 17... Qa5 {[%clk 0:01:44.1]} 18. Rc1
{[%clk 0:00:23.5]} 18... b5 {[%clk 0:01:35.1]} 19. cxb5 {[%clk 0:00:14.9]} 19...
cxb5 {[%clk 0:01:36]} 20. Nf3 {[%clk 0:00:14.6]} 20... Rac8 {[%clk 0:01:36.2]}
21. Nd5 {[%clk 0:00:12.1]} 21... Bxd5 {[%clk 0:01:12.1]} 22. exd5 {[%clk
0:00:12.6]} 22... b4 {[%clk 0:01:11.6]} 23. Qg4 {[%clk 0:00:08]} 23... Rc3
{[%clk 0:01:08.4]} 24. Nd2 {[%clk 0:00:05.4]} 24... Qxd5 {[%clk 0:01:07.2]} 25.
Qe4 {[%clk 0:00:04.4]} 25... Qd7 {[%clk 0:01:06.2]} 26. Nc4 {[%clk 0:00:03.8]}
26... Rxc1 {[%clk 0:01:04.7]} 27. Rxc1 {[%clk 0:00:03.6]} 27... Rd8 {[%clk
0:01:03.8]} 28. Qf3 {[%clk 0:00:01.4]} 28... Qd3+ {[%clk 0:00:51.8]} 29. Kf2
{[%clk 0:00:01.8]} 29... Qg6 {[%clk 0:00:38.5]} 30. Rf1 {[%clk 0:00:02.2]} 30...
Qxg5 {[%clk 0:00:36.8]} 31. Rg1 {[%clk 0:00:02.8]} 31... Qh4+ {[%clk 0:00:37.1]}
32. Ke2 {[%clk 0:00:02.9]} 32... e4 {[%clk 0:00:22.4]} 33. Qg4 {[%clk
0:00:03.2]} 33... Qxg4+ {[%clk 0:00:22.8]} 34. Rxg4 {[%clk 0:00:04.1]} 34... f5
{[%clk 0:00:23.4]} 35. Rg5 {[%clk 0:00:04.8]} 35... Rd5 {[%clk 0:00:24.1]} 36.
h4 {[%clk 0:00:03.6]} 36... Kf7 {[%clk 0:00:24.4]} 37. Rg1 {[%clk 0:00:03]}
37... Bf6 {[%clk 0:00:14.8]} 38. h5 {[%clk 0:00:02.6]} 38... Rd8 {[%clk
0:00:12.8]} 39. Rc1 {[%clk 0:00:03.1]} 39... Rg8 {[%clk 0:00:09.9]} 40. Nd2
{[%clk 0:00:02.9]} 40... Rg2+ {[%clk 0:00:10]} 41. Kd1 {[%clk 0:00:03.6]} 41...
Bc3 {[%clk 0:00:10.6]} 42. Kc2 {[%clk 0:00:04.3]} 42... Rxd2+ {[%clk 0:00:10.8]}
0-1

[Event "*** Titled Tuesday Blitz"]
[Site "Chess.com"]
[Date "2020.10.20"]
[Round "3"]
[White "HanSchut"]
[Black "ErikRonka"]
[Result "0-1"]
[WhiteElo "2240"]
[BlackElo "2426"]
[TimeControl "180+1"]
[EndTime "10:29:16 PDT"]
[Termination "ErikRonka won on time"]

1. e4 {[%clk 0:03:00.9]} 1... c5 {[%clk 0:02:59.5]} 2. Nf3 {[%clk 0:02:59]} 2...
e6 {[%clk 0:02:59.4]} 3. c4 {[%clk 0:02:58.7]} 3... Nc6 {[%clk 0:02:58.4]} 4.
Nc3 {[%clk 0:02:58.6]} 4... g5 {[%clk 0:02:58.2]} 5. h3 {[%clk 0:02:53.9]} 5...
Bg7 {[%clk 0:02:55.7]} 6. d4 {[%clk 0:02:45.6]} 6... cxd4 {[%clk 0:02:52]} 7.
Nb5 {[%clk 0:02:39.3]} 7... h6 {[%clk 0:02:30.7]} 8. Nfxd4 {[%clk 0:01:35.1]}
8... Nxd4 {[%clk 0:02:25.6]} 9. Nxd4 {[%clk 0:01:34.5]} 9... Nf6 {[%clk
0:02:16.8]} 10. Bd3 {[%clk 0:01:15.7]} 10... d6 {[%clk 0:02:11.6]} 11. Be3
{[%clk 0:01:10.4]} 11... b6 {[%clk 0:02:11]} 12. Qd2 {[%clk 0:00:59.3]} 12...
Bb7 {[%clk 0:02:09.2]} 13. f3 {[%clk 0:00:59.7]} 13... O-O {[%clk 0:02:04.9]}
14. h4 {[%clk 0:00:59.2]} 14... Nh7 {[%clk 0:01:33.3]} 15. hxg5 {[%clk
0:00:55.8]} 15... d5 {[%clk 0:01:30.3]} 16. gxh6 {[%clk 0:00:47.8]} 16... Bh8
{[%clk 0:01:29.3]} 17. cxd5 {[%clk 0:00:40.5]} 17... exd5 {[%clk 0:01:26.2]} 18.
O-O-O {[%clk 0:00:29.7]} 18... dxe4 {[%clk 0:01:24.6]} 19. Bxe4 {[%clk
0:00:29.8]} 19... Bxe4 {[%clk 0:01:23.2]} 20. fxe4 {[%clk 0:00:30.7]} 20... Qd6
{[%clk 0:01:14]} 21. Nf5 {[%clk 0:00:21.7]} 21... Qxd2+ {[%clk 0:01:10.4]} 22.
Rxd2 {[%clk 0:00:21.7]} 22... Rfe8 {[%clk 0:01:10.9]} 23. Nd6 {[%clk 0:00:15]}
23... Re6 {[%clk 0:01:06.9]} 24. Bf4 {[%clk 0:00:10.6]} 24... Rd8 {[%clk
0:01:02.3]} 25. Rhd1 {[%clk 0:00:10.3]} 25... Nf8 {[%clk 0:00:53.3]} 26. g4
{[%clk 0:00:09.3]} 26... Be5 {[%clk 0:00:49.3]} 27. Bxe5 {[%clk 0:00:07.3]}
27... Rxe5 {[%clk 0:00:50.2]} 28. Nf5 {[%clk 0:00:05.8]} 28... Rxd2 {[%clk
0:00:48.4]} 29. Rxd2 {[%clk 0:00:06.7]} 29... Rxe4 {[%clk 0:00:45.2]} 30. Rd8
{[%clk 0:00:06.6]} 30... Rxg4 {[%clk 0:00:33]} 31. h7+ {[%clk 0:00:07.1]} 31...
Kxh7 {[%clk 0:00:33.1]} 32. Rxf8 {[%clk 0:00:07.4]} 32... Kg6 {[%clk 0:00:27.4]}
33. Ne3 {[%clk 0:00:05.2]} 33... Rg1+ {[%clk 0:00:23.4]} 34. Nd1 {[%clk
0:00:05.1]} 34... Kg7 {[%clk 0:00:24.2]} 35. Ra8 {[%clk 0:00:04.7]} 35... a5
{[%clk 0:00:23.1]} 36. Rb8 {[%clk 0:00:04.6]} 36... Rg6 {[%clk 0:00:22.7]} 37.
a4 {[%clk 0:00:04.7]} 37... Rc6+ {[%clk 0:00:22.9]} 38. Kb1 {[%clk 0:00:04.6]}
38... f5 {[%clk 0:00:23.8]} 39. Rd8 {[%clk 0:00:01.6]} 39... f4 {[%clk
0:00:23.7]} 40. Rd2 {[%clk 0:00:02.1]} 40... f3 {[%clk 0:00:23]} 41. Rf2 {[%clk
0:00:02.6]} 41... Rf6 {[%clk 0:00:23.5]} 42. Ne3 {[%clk 0:00:02.6]} 42... Kg6
{[%clk 0:00:20.6]} 43. Nd5 {[%clk 0:00:02.6]} 43... Rf7 {[%clk 0:00:17.5]} 44.
Nxb6 {[%clk 0:00:02.5]} 44... Kg5 {[%clk 0:00:18.2]} 45. Nc4 {[%clk 0:00:02.6]}
45... Rf4 {[%clk 0:00:14.7]} 0-1

[Event "*** Titled Tuesday Blitz"]
[Site "Chess.com"]
[Date "2020.10.20"]
[Round "3"]
[White "Agoking701"]
[Black "MuhittinBuker"]
[Result "1-0"]
[WhiteElo "2345"]
[BlackElo "2087"]
[TimeControl "180+1"]
[EndTime "10:29:17 PDT"]
[Termination "Agoking701 won on time"]

1. e4 {[%clk 0:03:00.9]} 1... e5 {[%clk 0:02:56.3]} 2. Nf3 {[%clk 0:02:59.8]}
2... Nc6 {[%clk 0:02:56.7]} 3. Nc3 {[%clk 0:02:56.3]} 3... Nf6 {[%clk
0:02:54.9]} 4. Bb5 {[%clk 0:02:56.8]} 4... Bb4 {[%clk 0:02:55.2]} 5. O-O {[%clk
0:02:55.8]} 5... O-O {[%clk 0:02:55.7]} 6. d3 {[%clk 0:02:55.5]} 6... Bxc3
{[%clk 0:02:55.6]} 7. bxc3 {[%clk 0:02:55.4]} 7... d6 {[%clk 0:02:55.7]} 8. h3
{[%clk 0:02:49.7]} 8... Qe7 {[%clk 0:02:56]} 9. Be3 {[%clk 0:02:37.3]} 9... Nd8
{[%clk 0:02:53.8]} 10. Bc4 {[%clk 0:02:32.9]} 10... Be6 {[%clk 0:02:53.3]} 11.
Bb3 {[%clk 0:02:31.8]} 11... a5 {[%clk 0:02:49.7]} 12. a4 {[%clk 0:02:31.2]}
12... c5 {[%clk 0:02:33.2]} 13. Rb1 {[%clk 0:02:20.3]} 13... Rc8 {[%clk
0:02:17.2]} 14. Nd2 {[%clk 0:02:17.7]} 14... Bxb3 {[%clk 0:02:10.2]} 15. Rxb3
{[%clk 0:02:15.8]} 15... Rc7 {[%clk 0:02:09.2]} 16. Qe2 {[%clk 0:02:11.2]} 16...
Ne6 {[%clk 0:02:06.5]} 17. Nc4 {[%clk 0:02:07.9]} 17... Nf4 {[%clk 0:01:51.4]}
18. Bxf4 {[%clk 0:02:06.5]} 18... exf4 {[%clk 0:01:51.5]} 19. Rfb1 {[%clk
0:01:51.6]} 19... d5 {[%clk 0:01:50.1]} 20. Nxa5 {[%clk 0:01:45.3]} 20... dxe4
{[%clk 0:01:49.8]} 21. Rxb7 {[%clk 0:01:41]} 21... Rxb7 {[%clk 0:01:36.8]} 22.
Rxb7 {[%clk 0:01:39.3]} 22... Qe6 {[%clk 0:01:34.7]} 23. Nc4 {[%clk 0:01:21.3]}
23... Re8 {[%clk 0:01:11.6]} 24. a5 {[%clk 0:01:05.8]} 24... Qd5 {[%clk
0:01:05.7]} 25. a6 {[%clk 0:00:59.4]} 25... f3 {[%clk 0:01:04.2]} 26. Qe3 {[%clk
0:00:49.9]} 26... exd3 {[%clk 0:01:01]} 27. Qxd3 {[%clk 0:00:49.1]} 27... Qg5
{[%clk 0:00:48.9]} 28. g3 {[%clk 0:00:35.4]} 28... h5 {[%clk 0:00:43]} 29. a7
{[%clk 0:00:34.1]} 29... Qc1+ {[%clk 0:00:40]} 30. Kh2 {[%clk 0:00:33.3]} 30...
Re1 {[%clk 0:00:39.4]} 31. Rb8+ {[%clk 0:00:31.7]} 31... Ne8 {[%clk 0:00:36.7]}
32. Rxe8+ {[%clk 0:00:28.7]} 32... Rxe8 {[%clk 0:00:35.5]} 33. Qe4 {[%clk
0:00:21.3]} 33... Rd8 {[%clk 0:00:11.9]} 34. a8=Q {[%clk 0:00:18.1]} 34... Rxa8
{[%clk 0:00:11.8]} 35. Qxa8+ {[%clk 0:00:19]} 35... Kh7 {[%clk 0:00:10.5]} 36.
Qxf3 {[%clk 0:00:18.5]} 36... f6 {[%clk 0:00:09.8]} 37. Qxh5+ {[%clk 0:00:18.2]}
37... Kg8 {[%clk 0:00:09.2]} 38. Qd5+ {[%clk 0:00:17.6]} 38... Kh7 {[%clk
0:00:08.7]} 39. Qxc5 {[%clk 0:00:17.9]} 39... Qxc2 {[%clk 0:00:07.4]} 40. Qh5+
{[%clk 0:00:17.4]} 40... Kg8 {[%clk 0:00:06.3]} 41. Qd5+ {[%clk 0:00:17.2]}
41... Kh7 {[%clk 0:00:06.1]} 42. Kg2 {[%clk 0:00:15.4]} 42... Qxc3 {[%clk
0:00:04.4]} 43. Ne3 {[%clk 0:00:15]} 43... Qb2 {[%clk 0:00:02.4]} 44. h4 {[%clk
0:00:15]} 1-0

[Event "*** Titled Tuesday Blitz"]
[Site "Chess.com"]
[Date "2020.10.20"]
[Round "3"]
[White "nurgyulsalimova"]
[Black "Oleksandr_Bortnyk"]
[Result "0-1"]
[WhiteElo "2658"]
[BlackElo "2885"]
[TimeControl "180+1"]
[EndTime "10:29:18 PDT"]
[Termination "Oleksandr_Bortnyk won by resignation"]

1. d4 {[%clk 0:03:00.9]} 1... Nf6 {[%clk 0:02:56.6]} 2. c4 {[%clk 0:03:00.4]}
2... b6 {[%clk 0:02:51.8]} 3. Nc3 {[%clk 0:02:34.4]} 3... Bb7 {[%clk 0:02:52.7]}
4. Qc2 {[%clk 0:02:33.7]} 4... e6 {[%clk 0:02:48.4]} 5. e4 {[%clk 0:02:25.4]}
5... Bb4 {[%clk 0:02:47.2]} 6. Bd3 {[%clk 0:02:20.9]} 6... c5 {[%clk 0:02:35.3]}
7. d5 {[%clk 0:02:11.7]} 7... b5 {[%clk 0:02:33]} 8. Ne2 {[%clk 0:01:54.7]} 8...
exd5 {[%clk 0:02:28.5]} 9. exd5 {[%clk 0:01:53.2]} 9... bxc4 {[%clk 0:02:29]}
10. Bxc4 {[%clk 0:01:52.8]} 10... Nxd5 {[%clk 0:02:16.9]} 11. O-O {[%clk
0:01:50.8]} 11... Nf6 {[%clk 0:02:11.8]} 12. Bg5 {[%clk 0:01:41.4]} 12... O-O
{[%clk 0:02:07.5]} 13. Rad1 {[%clk 0:01:40.5]} 13... Qb6 {[%clk 0:01:51.2]} 14.
Ng3 {[%clk 0:00:53.2]} 14... Bxc3 {[%clk 0:01:36.6]} 15. bxc3 {[%clk 0:00:47.4]}
15... d5 {[%clk 0:01:27.5]} 16. Bxf6 {[%clk 0:00:24.9]} 16... dxc4 {[%clk
0:01:21.6]} 17. Be7 {[%clk 0:00:18.9]} 17... Re8 {[%clk 0:01:18.1]} 18. Rfe1
{[%clk 0:00:17.9]} 18... Nc6 {[%clk 0:01:12.7]} 19. Bd6 {[%clk 0:00:10.1]} 19...
Nd4 {[%clk 0:01:09.3]} 20. Rxe8+ {[%clk 0:00:05.8]} 20... Rxe8 {[%clk
0:01:10.2]} 21. cxd4 {[%clk 0:00:05.2]} 21... Qxd6 {[%clk 0:01:10.6]} 22. Qxc4
{[%clk 0:00:03.1]} 22... cxd4 {[%clk 0:01:09.6]} 23. Rxd4 {[%clk 0:00:03.5]}
23... Qg6 {[%clk 0:00:52.8]} 24. h3 {[%clk 0:00:03.1]} 24... h5 {[%clk
0:00:44.3]} 25. Kh2 {[%clk 0:00:03.3]} 25... Bc6 {[%clk 0:00:27.5]} 26. Qc5
{[%clk 0:00:02.9]} 26... Re2 {[%clk 0:00:25]} 27. Rd8+ {[%clk 0:00:02.3]} 27...
Kh7 {[%clk 0:00:25.1]} 28. Qxh5+ {[%clk 0:00:02.4]} 28... Qxh5 {[%clk
0:00:25.5]} 29. Nxh5 {[%clk 0:00:03.3]} 29... Rxf2 {[%clk 0:00:26.2]} 30. Kg3
{[%clk 0:00:03.2]} 30... Rxg2+ {[%clk 0:00:26.5]} 31. Kf4 {[%clk 0:00:02.9]}
31... Rxa2 {[%clk 0:00:26.8]} 32. Ng3 {[%clk 0:00:02.9]} 32... Ra4+ {[%clk
0:00:27.4]} 33. Kg5 {[%clk 0:00:03]} 33... f6+ {[%clk 0:00:26.8]} 34. Kf5 {[%clk
0:00:03.5]} 34... Ra3 {[%clk 0:00:27.5]} 35. Ne2 {[%clk 0:00:02.6]} 35... Rxh3
{[%clk 0:00:26.5]} 36. Nf4 {[%clk 0:00:03.1]} 36... Rf3 {[%clk 0:00:26.3]} 37.
Kg4 {[%clk 0:00:03.5]} 37... Rf1 {[%clk 0:00:26]} 38. Ne6 {[%clk 0:00:03.6]}
38... a5 {[%clk 0:00:23.6]} 39. Nf8+ {[%clk 0:00:03.7]} 39... Kh6 {[%clk
0:00:24.2]} 40. Rd2 {[%clk 0:00:04.4]} 40... f5+ {[%clk 0:00:21.4]} 41. Kg3
{[%clk 0:00:04.8]} 41... Rf3+ {[%clk 0:00:20]} 42. Kh2 {[%clk 0:00:05.2]} 42...
Rc3 {[%clk 0:00:19]} 43. Ne6 {[%clk 0:00:05.1]} 43... g5 {[%clk 0:00:18.8]} 44.
Nc7 {[%clk 0:00:03.4]} 44... Be4 {[%clk 0:00:18.8]} 45. Rd6+ {[%clk 0:00:03.5]}
45... Kh5 {[%clk 0:00:19.3]} 46. Ne6 {[%clk 0:00:03.9]} 46... Kg4 {[%clk
0:00:19.5]} 47. Nd4 {[%clk 0:00:03.8]} 47... Rd3 {[%clk 0:00:20]} 48. Kg1 {[%clk
0:00:03.7]} 48... a4 {[%clk 0:00:19.5]} 0-1

[Event "*** Titled Tuesday Blitz"]
[Site "Chess.com"]
[Date "2020.10.20"]
[Round "3"]
[White "Iskusnyh"]
[Black "DrMamaliga"]
[Result "1/2-1/2"]
[WhiteElo "2555"]
[BlackElo "2365"]
[TimeControl "180+1"]
[EndTime "10:29:18 PDT"]
[Termination "Game drawn by repetition"]

1. d4 {[%clk 0:03:00.9]} 1... Nf6 {[%clk 0:02:58.9]} 2. c4 {[%clk 0:03:01.3]}
2... e6 {[%clk 0:02:56.4]} 3. g3 {[%clk 0:03:01.3]} 3... c5 {[%clk 0:02:55]} 4.
Nf3 {[%clk 0:03:00.4]} 4... cxd4 {[%clk 0:02:54.4]} 5. Nxd4 {[%clk 0:03:00.5]}
5... d5 {[%clk 0:02:53.7]} 6. Bg2 {[%clk 0:03:00.5]} 6... e5 {[%clk 0:02:52.8]}
7. Nf3 {[%clk 0:03:00.3]} 7... d4 {[%clk 0:02:52.4]} 8. O-O {[%clk 0:02:59.2]}
8... Nc6 {[%clk 0:02:51.6]} 9. e3 {[%clk 0:02:59.2]} 9... Be7 {[%clk 0:02:49.9]}
10. exd4 {[%clk 0:02:59.1]} 10... exd4 {[%clk 0:02:49.6]} 11. b4 {[%clk
0:02:59.7]} 11... Nxb4 {[%clk 0:02:26.5]} 12. Nxd4 {[%clk 0:02:52.9]} 12... O-O
{[%clk 0:02:25.4]} 13. a3 {[%clk 0:02:43.6]} 13... Na6 {[%clk 0:02:24.3]} 14.
Nc3 {[%clk 0:02:35.9]} 14... Bg4 {[%clk 0:02:22]} 15. Qd2 {[%clk 0:02:24.2]}
15... Nc5 {[%clk 0:02:20.9]} 16. Rb1 {[%clk 0:02:22.7]} 16... Rb8 {[%clk
0:02:19.1]} 17. h3 {[%clk 0:02:14.2]} 17... Bd7 {[%clk 0:02:16.6]} 18. Nd5
{[%clk 0:02:10.3]} 18... Nxd5 {[%clk 0:02:07.8]} 19. cxd5 {[%clk 0:02:09.6]}
19... a6 {[%clk 0:01:57.1]} 20. Bb2 {[%clk 0:02:04.2]} 20... Bd6 {[%clk
0:01:56]} 21. Rfd1 {[%clk 0:01:48.9]} 21... Re8 {[%clk 0:01:46.7]} 22. Rbc1
{[%clk 0:01:35.8]} 22... Rc8 {[%clk 0:01:43.7]} 23. Re1 {[%clk 0:01:14.1]} 23...
Qb6 {[%clk 0:01:39.6]} 24. Rb1 {[%clk 0:01:03.7]} 24... Rxe1+ {[%clk 0:01:35.9]}
25. Rxe1 {[%clk 0:01:01.2]} 25... Nb3 {[%clk 0:01:28.3]} 26. Nxb3 {[%clk
0:00:59.8]} 26... Qxb3 {[%clk 0:01:29.2]} 27. Qd4 {[%clk 0:00:57.9]} 27... f6
{[%clk 0:01:27.9]} 28. Kh2 {[%clk 0:00:47.7]} 28... Re8 {[%clk 0:01:18.7]} 29.
Rxe8+ {[%clk 0:00:43.9]} 29... Bxe8 {[%clk 0:01:19.6]} 30. Qg4 {[%clk
0:00:35.4]} 30... Bf8 {[%clk 0:01:02.8]} 31. Bxf6 {[%clk 0:00:23.2]} 31... Qxa3
{[%clk 0:01:01.3]} 32. Be5 {[%clk 0:00:21.8]} 32... b5 {[%clk 0:00:38.2]} 33. d6
{[%clk 0:00:20]} 33... Qd3 {[%clk 0:00:37.6]} 34. f4 {[%clk 0:00:19]} 34... b4
{[%clk 0:00:35.1]} 35. Qc8 {[%clk 0:00:17.9]} 35... Qb5 {[%clk 0:00:28.5]} 36.
h4 {[%clk 0:00:11.1]} 36... Bd7 {[%clk 0:00:22.4]} 37. Qd8 {[%clk 0:00:09.1]}
37... b3 {[%clk 0:00:19.7]} 38. h5 {[%clk 0:00:07.2]} 38... b2 {[%clk
0:00:16.1]} 39. Bxb2 {[%clk 0:00:06.5]} 39... Qxh5+ {[%clk 0:00:13.5]} 40. Kg1
{[%clk 0:00:05.3]} 40... Qd1+ {[%clk 0:00:13.7]} 41. Kh2 {[%clk 0:00:04.4]}
41... Qh5+ {[%clk 0:00:10.6]} 42. Kg1 {[%clk 0:00:04.4]} 42... Qd1+ {[%clk
0:00:11.2]} 43. Kh2 {[%clk 0:00:04.9]} 43... Qh5+ {[%clk 0:00:11.1]} 1/2-1/2